bitfinex-derivatives/quotes_ETHF0:USTF0_20250427
["timestamp","ask_amount","ask_price","bid_price","bid_amount"]
[1745725924001,3.2078,1807.2,1807.1,1.10639]
[1745725924597,3.2078,1807.2,1807.1,2.79939]
[1745725925196,3.2078,1807.2,1807.1,7.79939]
[1745725925495,0.8407,1807.6,1807.1,7.79939]
[1745725925496,11.06663,1807.6,1807.5,1.10614]
[1745725925688,12.73653,1807.6,1807.5,1.10614]
[1745725925894,1.10639,1807.1,1807.0,3.722]
[1745725926094,1.10659,1806.8,1806.5,4.8408]
[1745725926295,1.10664,1806.7,1806.5,4.8408]
[1745725926491,3.2078,1806.6,1806.4,0.8154]
[1745725926691,1.10675,1806.5,1806.4,0.8154]
[1745725926894,1.10658,1806.8,1806.7,1.10661]
[1745725927092,1.10655,1806.9,1806.8,1.10655]
[1745725927296,1.10657,1806.8,1806.7,6.46158]
[1745725928591,1.10657,1806.8,1806.7,5.355]
[1745725929100,1.10657,1806.8,1806.7,6.46163]
[1745725929892,1.5857,1806.9,1806.8,1.10657]
[1745725930093,3.2078,1807.0,1806.9,1.10651]
[1745725930294,3.2078,1807.0,1806.9,6.10651]
[1745725930490,3.2078,1807.0,1806.9,7.68281]
[1745725930893,3.2078,1807.3,1807.2,1.10633]
[1745725931196,3.845,1807.7,1807.2,1.10633]
[1745725931197,1.10604,1807.7,1807.6,1.10608]
[1745725931391,9.5242,1807.8,1807.7,1.10602]
[1745725931590,5.912,1807.8,1807.7,1.10602]
[1745725931791,5.912,1807.8,1807.6,1.10603]
[1745725931792,1.10604,1807.7,1807.6,1.10603]
[1745725932193,1.10608,1807.6,1807.5,2.68241]
[1745725932393,1.10608,1807.6,1807.5,6.52741]
[1745725933192,1.10608,1807.6,1807.5,3.722]
[1745725933595,1.10608,1807.6,1807.5,4.82814]
[1745725933801,1.10608,1807.6,1807.5,3.722]
[1745725934490,5.13347,1807.7,1807.6,1.10608]
[1745725934888,4.31387,1807.7,1807.6,1.10608]
[1745725935100,4.31387,1807.7,1807.6,2.78518]
[1745725935698,4.31387,1807.7,1807.6,1.6791]
[1745725936101,4.31387,1807.7,1807.6,2.78518]
[1745725936299,4.31387,1807.7,1807.6,1.6791]
[1745725936599,4.31387,1807.7,1807.6,2.78518]
[1745725936798,4.31387,1807.7,1807.6,1.6791]
[1745725937199,4.31387,1807.7,1807.6,2.78518]
[1745725937403,4.31387,1807.7,1807.6,1.6791]
[1745725937600,1.10608,1807.6,1807.5,4.8281]
[1745725937801,4.31387,1807.7,1807.6,1.10608]
[1745725938001,4.31387,1807.7,1807.6,2.81288]
[1745725938599,3.2078,1807.7,1807.6,2.81288]
[1745725938803,4.31374,1807.9,1807.8,1.10596]
[1745725939204,4.31374,1807.9,1807.8,4.82796]
[1745725939595,4.3137,1807.9,1807.8,4.82796]
[1745725939804,3.2078,1807.9,1807.8,6.53306]
[1745725942105,1.10584,1808.0,1807.9,1.10585]
[1745725942908,2.79894,1808.0,1807.9,1.10585]
[1745725943103,2.79894,1808.0,1807.9,4.82785]
[1745725944103,2.79894,1808.0,1807.9,4.8279]
[1745725944302,2.79894,1808.0,1807.9,3.722]
[1745725944505,2.79894,1808.0,1807.9,4.8279]
[1745725945512,1.6931,1808.0,1807.9,4.8279]
[1745725945904,2.79894,1808.0,1807.9,4.8279]
[1745725946512,1.6931,1808.0,1807.9,4.8279]
[1745725946911,4.31357,1808.1,1807.9,3.722]
[1745725947112,2.79734,1808.0,1807.9,4.82786]
[1745725947302,1.6915,1808.0,1807.9,4.82786]
[1745725948008,2.79734,1808.0,1807.9,4.82786]
[1745725949708,1.6915,1808.0,1807.9,6.46706]
[1745725950014,3.2078,1808.1,1808.0,1.10584]
[1745725950217,4.31357,1808.1,1808.0,3.57554]
[1745725950614,5.92137,1808.1,1808.0,3.57554]
[1745725951118,5.92137,1808.1,1808.0,7.29754]
[1745725953415,4.8156,1808.1,1808.0,7.29754]
[1745725953619,5.52777,1808.5,1808.0,7.29754]
[1745725953620,7.01741,1808.8,1808.7,1.10541]
[1745725953911,1.10541,1808.8,1808.7,1.10541]
[1745725954217,1.10541,1808.7,1808.6,4.31322]
[1745725954411,1.10541,1808.7,1808.6,1.10542]
[1745725954711,1.10547,1808.6,1808.5,5.08149]
[1745725955109,1.10547,1808.6,1808.5,8.80349]
[1745725955509,1.95067,1808.6,1808.5,8.80349]
[1745725955715,1.95067,1808.6,1808.5,4.82749]
[1745725956016,2.78007,1808.6,1808.5,4.82749]
[1745725956215,1.6746,1808.6,1808.5,4.82749]
[1745725956607,2.78007,1808.6,1808.5,4.82749]
[1745725956815,4.49677,1808.6,1808.5,4.82749]
[1745725957612,3.3913,1808.6,1808.5,4.82749]
[1745725958118,5.912,1808.8,1808.7,1.10541]
[1745725958318,7.6287,1808.8,1808.7,1.10541]
[1745725958718,8.73405,1808.8,1808.7,1.10541]
[1745725958909,7.6287,1808.8,1808.7,1.10541]
[1745725959106,7.6287,1808.8,1808.7,2.73661]
[1745725959310,7.6287,1808.8,1808.7,6.45861]
[1745725961117,1.7167,1808.8,1808.7,6.45861]
[1745725962223,2.82205,1808.8,1808.7,6.45861]
[1745725962619,1.7167,1808.8,1808.7,4.82741]
[1745725963725,2.82205,1808.8,1808.7,4.82741]
[1745725970919,1.7167,1808.8,1808.7,4.82741]
[1745725971225,2.82205,1808.8,1808.7,4.82741]
[1745725971527,1.7167,1808.8,1808.7,4.82741]
[1745725971724,2.82205,1808.8,1808.7,4.82741]
[1745725972019,1.7167,1808.8,1808.7,4.82741]
[1745725972219,2.82205,1808.8,1808.7,4.82741]
[1745725978331,1.7167,1808.8,1808.7,4.82741]
[1745725978527,1.7167,1808.8,1808.7,5.67091]
[1745725979033,1.7167,1808.8,1808.7,7.24431]
[1745725979932,2.82205,1808.8,1808.7,7.24431]
[1745725980532,1.7167,1808.8,1808.7,7.24431]
[1745725984135,3.2078,1808.9,1808.8,1.10535]
[1745725984329,4.8514,1808.9,1808.8,2.80145]
[1745725985732,10.225,1809.1,1809.0,1.10522]
[1745725985941,4.8514,1809.1,1809.0,1.10522]
[1745725986139,2.74876,1809.1,1809.0,8.15312]
[1745725986338,1.6436,1809.1,1809.0,8.15312]
[1745725988735,6.7647,1809.2,1809.1,1.10516]
[1745725988936,1.7133,1809.3,1809.2,1.1051]
[1745725989142,1.7133,1809.3,1809.2,4.8271]
[1745725989439,7.81545,1809.5,1809.4,1.10498]
[1745725989640,6.7105,1809.5,1809.4,1.10498]
[1745725989829,3.2078,1809.7,1809.6,1.10486]
[1745725990343,4.3126,1809.7,1809.6,1.10486]
[1745725990739,4.8763,1809.7,1809.6,1.10486]
[1745725990943,5.9811,1809.7,1809.6,1.10486]
[1745725991242,5.9811,1809.7,1809.6,1.95826]
[1745725991542,4.8763,1809.7,1809.6,1.95826]
[1745725992443,6.697,1809.9,1809.6,1.95826]
[1745725992444,9.9048,1809.9,1809.8,1.10474]
[1745725992643,11.5733,1809.9,1809.8,1.10474]
[1745725992838,12.67797,1809.9,1809.8,1.10474]
[1745725993137,1.1048,1809.7,1809.6,1.95824]
[1745725993640,2.82108,1809.8,1809.7,1.1048]
[1745725994043,1.1048,1809.7,1809.6,1.95821]
[1745725994343,1.7163,1809.7,1809.5,2.73087]
[1745725994540,1.10486,1809.6,1809.5,6.61987]
[1745725994936,2.82116,1809.6,1809.5,6.61987]
[1745725995152,2.82116,1809.6,1809.5,10.34187]
[1745725996143,2.82116,1809.6,1809.5,6.45287]
[1745725996337,1.7163,1809.6,1809.5,6.45287]
[1745725996836,2.82116,1809.6,1809.5,6.45287]
[1745725998047,2.82116,1809.6,1809.5,3.722]
[1745725998244,1.10498,1809.4,1809.3,4.99404]
[1745725998943,1.10498,1809.4,1809.3,6.70374]
[1745725999145,1.10498,1809.4,1809.3,10.42574]
[1745725999543,2.82358,1809.5,1809.4,1.10498]
[1745725999740,1.10498,1809.4,1809.3,3.722]
[1745725999939,2.67398,1809.4,1809.3,4.82704]
[1745726000537,3.51978,1809.4,1809.3,4.82704]
[1745726000744,2.4148,1809.4,1809.3,4.82704]
[1745726000943,3.51978,1809.4,1809.3,4.82704]
[1745726001637,3.51978,1809.4,1809.3,3.722]
[1745726002344,3.51978,1809.4,1809.3,1.10504]
[1745726002545,1.10504,1809.3,1809.2,10.39056]
[1745726002743,2.79684,1809.3,1809.2,10.39056]
[1745726002949,1.6918,1809.3,1809.2,10.39056]
[1745726003147,1.10503,1809.4,1809.3,1.10504]
[1745726003347,1.10503,1809.4,1809.3,2.74664]
[1745726003741,1.10503,1809.4,1809.3,1.6416]
[1745726003742,2.79683,1809.4,1809.3,1.6416]
[1745726003949,2.79683,1809.4,1809.3,2.74664]
[1745726004147,2.79683,1809.4,1809.3,6.46864]
[1745726004340,2.79683,1809.4,1809.3,3.722]
[1745726006343,7.79683,1809.4,1809.3,3.722]
[1745726006542,2.79683,1809.4,1809.3,3.722]
[1745726007149,1.10504,1809.3,1809.2,1.10507]
[1745726007351,3.60574,1809.3,1809.2,1.10507]
[1745726007650,1.1051,1809.2,1809.1,5.9134]
[1745726007849,2.7464,1809.2,1809.1,5.9134]
[1745726008145,1.10508,1809.3,1809.2,1.1051]
[1745726008350,1.10508,1809.3,1809.2,2.7056]
[1745726009650,1.10508,1809.3,1809.2,6.4276]
[1745726009851,3.2078,1809.5,1809.4,1.10498]
[1745726010051,5.912,1809.6,1809.5,1.10492]
[1745726010250,5.912,1809.6,1809.3,12.59993]
[1745726010251,4.31265,1809.7,1809.6,1.10486]
[1745726010552,1.10485,1809.7,1809.6,1.10486]
[1745726011152,1.10486,1809.6,1809.5,4.8269]
[1745726016056,1.10486,1809.6,1809.5,4.82692]
[1745726017150,1.10486,1809.6,1809.5,1.10492]
[1745726017345,1.10486,1809.6,1809.4,1.6136]
[1745726017550,1.10498,1809.4,1809.3,8.6691]
[1745726017755,1.10498,1809.4,1809.3,9.7741]
[1745726018156,1.10498,1809.4,1809.3,13.4961]
[1745726018557,1.95355,1809.5,1809.4,1.10498]
[1745726018758,1.10491,1809.6,1809.5,1.10492]
[1745726019755,1.10492,1809.5,1809.4,6.41083]
[1745726020158,1.10492,1809.5,1809.4,3.722]
[1745726020352,1.10492,1809.5,1809.4,4.82698]
[1745726021961,2.77492,1809.5,1809.4,4.82698]
[1745726023261,2.77492,1809.5,1809.4,3.722]
[1745726023465,3.55572,1809.5,1809.4,3.722]
[1745726024064,3.55572,1809.5,1809.4,4.82698]
[1745726025165,3.55572,1809.5,1809.4,3.722]
[1745726025967,3.55572,1809.5,1809.4,4.82698]
[1745726026160,2.77492,1809.5,1809.4,6.54878]
[1745726029080,2.77492,1809.5,1809.4,3.722]
[1745726030181,1.10504,1809.3,1809.2,3.811]
[1745726030680,2.70154,1809.3,1809.2,4.9161]
[1745726030980,1.1051,1809.2,1809.1,7.54874]
[1745726031172,1.1051,1809.2,1809.1,3.722]
[1745726031376,2.7016,1809.2,1809.1,3.722]
[1745726032081,1.10529,1808.9,1808.8,1.6083]
[1745726032280,1.10529,1808.9,1808.8,2.71361]
[1745726033186,2.82679,1808.9,1808.8,6.43561]
[1745726033882,1.10525,1809.0,1808.9,1.10529]
[1745726034187,1.10535,1808.8,1808.7,4.31317]
[1745726034576,1.10535,1808.8,1808.7,6.01547]
[1745726035183,2.82683,1808.9,1808.8,1.10535]
[1745726035389,2.82683,1808.9,1808.8,2.80765]
[1745726037085,2.82683,1808.9,1808.8,3.722]
[1745726037086,1.7215,1808.9,1808.8,3.722]
[1745726037285,6.03459,1808.9,1808.8,3.722]
[1745726037481,6.03459,1808.9,1808.8,2.58285]
[1745726037482,11.94659,1808.9,1808.8,2.58285]
[1745726037687,1.10569,1808.3,1808.2,4.91766]
[1745726037887,1.10569,1808.3,1808.2,6.49396]
[1745726038087,1.10569,1808.3,1808.2,10.21596]
[1745726039286,2.72524,1808.4,1808.3,1.10565]
[1745726039491,2.72519,1808.4,1808.3,3.55165]
[1745726039887,1.10565,1808.3,1808.2,7.494]
[1745726040091,2.83725,1808.3,1808.2,3.722]
[1745726040286,16.95705,1808.3,1808.2,3.09704999]
[1745726040588,16.95705,1808.3,1808.2,0.49188999]
[1745726040791,16.95705,1808.3,1808.2,9.99e-06]
[1745726041196,16.95705,1808.3,1808.0,7.33979441]
[1745726041197,1.10577,1808.1,1808.0,4.9512444]
[1745726041493,1.1062,1807.4,1807.3,9.6471144]
[1745726041691,1.1062,1807.4,1807.3,12.3138644]
[1745726042195,1.1062,1807.4,1807.3,16.0358644]
[1745726042493,0.8212,1807.6,1807.3,16.0358644]
[1745726042694,2.67217,1807.5,1807.4,1.10619]
[1745726042893,2.67217,1807.5,1807.4,2.79079]
[1745726043092,1.1062,1807.4,1807.3,3.7023644]
[1745726043301,6.6876,1807.4,1807.3,3.7023644]
[1745726044798,6.6876,1807.4,1806.9,4.87949]
[1745726044799,1.10645,1807.0,1806.9,4.87949]
[1745726045096,1.10645,1807.0,1806.9,10.28609]
[1745726045492,1.10645,1807.0,1806.9,5.4066]
[1745726045702,1.10645,1807.0,1806.9,4.82851]
[1745726045999,1.10645,1807.0,1806.9,6.46081]
[1745726046898,1.10642,1807.1,1807.0,1.10643]
[1745726047202,3.2078,1807.2,1807.1,1.10639]
[1745726047595,3.2078,1807.2,1807.1,2.73869]
[1745726047892,6.7196,1807.4,1807.3,1.10626]
[1745726047893,5.912,1807.4,1807.3,1.10626]
[1745726048093,1.1062,1807.4,1807.3,1.10626]
[1745726048502,1.1062,1807.4,1807.3,2.73876]
[1745726048901,1.7327,1807.5,1807.3,1.6325]
[1745726049102,2.83888,1807.5,1807.4,1.1062]
[1745726049797,9.1198,1807.7,1807.4,1.6325]
[1745726049996,7.6447,1807.7,1807.6,4.31388]
[1745726050501,5.912,1807.7,1807.6,4.31388]
[1745726050696,5.912,1808.1,1808.0,1.10584]
[1745726050890,1.10578,1808.1,1808.0,1.10579]
[1745726051100,1.10584,1808.0,1807.9,3.56295]
[1745726051298,1.10583,1808.1,1808.0,1.10584]
[1745726051500,1.10583,1808.1,1808.0,2.67814]
[1745726052094,1.10583,1808.1,1808.0,6.40014]
[1745726054002,2.69474,1808.2,1808.1,1.10577]
[1745726054197,2.69474,1808.2,1808.0,6.40009]
[1745726054597,2.69477,1808.2,1808.0,6.40009]
[1745726054798,1.589,1808.2,1808.1,1.10577]
[1745726055000,2.69471,1808.2,1808.1,1.10577]
[1745726056312,1.589,1808.2,1808.1,1.10577]
[1745726056508,10.2255,1808.3,1808.2,1.10571]
[1745726056707,4.3135,1808.3,1808.2,1.10571]
[1745726057211,5.9227,1808.3,1808.2,4.82771]
[1745726059103,1.10571,1808.2,1808.1,1.10574]
[1745726059305,2.68321,1808.2,1808.1,1.10574]
[1745726059504,1.10577,1808.1,1808.0,1.5723]
[1745726059701,1.10596,1807.8,1807.7,5.11811]
[1745726060212,1.10596,1807.8,1807.7,8.84011]
[1745726060915,2.68344,1807.9,1807.8,1.10596]
[1745726061103,2.68344,1807.9,1807.8,4.82796]
[1745726061610,2.68344,1807.9,1807.8,3.722]
[1745726062116,1.10596,1807.8,1807.7,3.2078]
[1745726062311,2.67546,1807.8,1807.7,3.2078]
[1745726062510,2.67546,1807.8,1807.7,4.31382]
[1745726062705,2.67546,1807.8,1807.7,3.2078]
[1745726065120,1.10602,1807.7,1807.6,1.6549]
[1745726065318,2.73482,1807.7,1807.6,1.6549]
[1745726065517,1.10608,1807.6,1807.5,1.91041]
[1745726065705,1.10608,1807.6,1807.5,3.55041]
[1745726066318,1.10608,1807.6,1807.5,7.27241]
[1745726067616,1.6288,1807.7,1807.6,1.10608]
[1745726067617,2.73488,1807.7,1807.6,1.10608]
[1745726068019,2.73488,1807.7,1807.6,2.72038]
[1745726069717,2.73488,1807.7,1807.6,1.6143]
[1745726070321,1.10608,1807.6,1807.5,5.63244]
[1745726070619,2.67608,1807.6,1807.5,5.63244]
[1745726070821,2.67608,1807.6,1807.5,7.36664]
[1745726071413,2.67608,1807.6,1807.5,6.2605]
[1745726072225,1.10608,1807.6,1807.5,7.36664]
[1745726072918,1.10608,1807.6,1807.5,6.2605]
[1745726074023,1.10608,1807.6,1807.5,3.722]
[1745726074223,1.1062,1807.4,1807.3,5.4187]
[1745726075124,1.1062,1807.4,1807.3,9.1407]
[1745726076021,1.1062,1807.4,1807.3,5.3707]
[1745726076210,12.0182,1807.4,1807.3,3.722]
[1745726076616,13.6434,1807.4,1807.3,3.722]
[1745726077116,1.10645,1807.0,1806.9,6.52731]
[1745726078120,1.10645,1807.0,1806.9,5.4208]
[1745726078319,1.10645,1807.0,1806.9,9.1428]
[1745726079727,1.10645,1807.0,1806.9,3.722]
[1745726080321,1.10645,1807.0,1806.9,5.3095]
[1745726081921,1.10645,1807.0,1806.9,3.722]
[1745726082118,4.31425,1807.0,1806.9,3.722]
[1745726085330,1.10657,1806.8,1806.7,6.47472]
[1745726085529,1.10657,1806.8,1806.7,5.3681]
[1745726089323,2.79727,1806.8,1806.7,5.3681]
[1745726090737,2.79727,1806.8,1806.7,6.47473]
[1745726090939,1.10657,1806.8,1806.7,6.47473]
[1745726091236,1.10657,1806.8,1806.7,5.3681]
[1745726093538,1.10657,1806.8,1806.7,6.47473]
[1745726094941,10.34515,1807.0,1806.8,1.10651]
[1745726094942,1.10655,1806.9,1806.8,1.10651]
[1745726095142,1.10655,1806.9,1806.8,2.71021]
[1745726096253,1.10655,1806.9,1806.8,6.43221]
[1745726097244,1.10655,1806.9,1806.8,10.20421]
[1745726098247,3.2078,1807.2,1807.1,1.10639]
[1745726098540,5.912,1807.3,1807.1,1.10639]
[1745726098541,1.10632,1807.3,1807.2,1.10627]
[1745726098934,1.10632,1807.3,1807.2,2.77347]
[1745726099244,1.10625,1807.4,1807.3,1.10621]
[1745726099445,1.10625,1807.4,1807.3,3.57501]
[1745726100147,1.10625,1807.4,1807.3,7.29701]
[1745726101541,2.76524,1807.6,1807.3,6.1908]
[1745726101846,1.10619,1807.5,1807.4,3.65416]
[1745726103149,1.10619,1807.5,1807.4,7.37616]
[1745726103950,1.10619,1807.5,1807.4,7.3762]
[1745726104947,1.10612,1807.6,1807.5,1.10614]
[1745726105146,4.31387,1807.7,1807.6,1.10608]
[1745726105547,4.31387,1807.7,1807.6,2.76068]
[1745726107042,4.31387,1807.7,1807.6,1.6546]
[1745726107445,5.89577,1807.7,1807.6,1.6546]
[1745726111551,5.89577,1807.7,1807.6,2.76068]
[1745726111858,1.10607,1807.7,1807.6,3.62288]
[1745726112343,1.10607,1807.7,1807.6,6.83068]
[1745726112653,1.10607,1807.7,1807.6,3.62288]
[1745726112855,1.10602,1807.8,1807.7,1.10598]
[1745726113153,1.10602,1807.8,1807.7,6.53268]
[1745726113353,1.10602,1807.8,1807.7,10.25468]
[1745726114255,2.82843,1807.9,1807.8,1.10596]
[1745726114454,2.82843,1807.9,1807.8,3.62966]
[1745726114654,1.1059,1808.0,1807.9,1.10585]
[1745726114843,1.1059,1808.0,1807.9,1.7027]
[1745726115047,1.1059,1808.0,1807.9,2.8086]
[1745726115246,1.1059,1808.0,1807.9,6.5306]
[1745726118758,1.1059,1808.0,1807.9,7.3191]
[1745726119662,1.1059,1808.0,1807.9,6.2132]
[1745726119956,1.1059,1808.0,1807.9,7.3191]
[1745726120458,1.1059,1808.0,1807.9,6.2132]
[1745726120658,1.1059,1808.0,1807.9,7.3191]
[1745726121560,1.1059,1808.0,1807.9,6.2132]
[1745726121751,1.1059,1808.0,1807.9,7.3191]
[1745726123260,1.1059,1808.0,1807.9,6.2132]
[1745726123452,1.1059,1808.0,1807.9,7.3191]
[1745726125158,2.72981,1808.1,1808.0,1.10584]
[1745726126262,2.72981,1808.1,1808.0,4.82784]
[1745726126565,2.72981,1808.1,1808.0,3.722]
[1745726128161,2.72981,1808.1,1808.0,0.00382526]
[1745726129061,3.2078,1808.8,1808.5,1.10551]
[1745726129361,1.5932,1808.6,1808.3,6.9318]
[1745726129558,2.69872,1808.6,1808.5,1.10553]
[1745726130267,2.69872,1808.6,1808.5,6.43333]
[1745726131060,2.69872,1808.6,1808.5,3.722]
[1745726131964,10.90652,1808.6,1808.5,3.722]
[1745726132164,10.90652,1808.6,1808.2,4.5609]
[1745726132165,1.10565,1808.3,1808.2,4.5609]
[1745726132965,1.10565,1808.3,1808.2,5.66661]
[1745726133263,1.5998,1808.3,1808.2,9.38861]
[1745726134060,0.8433,1808.5,1808.2,9.38861]
[1745726134261,9.1198,1808.6,1808.5,1.10553]
[1745726134262,10.2253,1808.6,1808.5,1.10553]
[1745726134460,9.1198,1808.6,1808.5,1.10553]
[1745726134655,9.1198,1808.6,1808.5,4.81253]
[1745726134864,5.912,1808.6,1808.5,4.81253]
[1745726135068,5.912,1808.6,1808.5,6.53733]
[1745726135362,5.912,1808.6,1808.5,10.25933]
[1745726135969,5.912,1808.6,1808.5,15.25933]
[1745726136162,1.10538,1808.8,1808.7,1.10541]
[1745726136767,1.10538,1808.8,1808.7,3.58021]
[1745726136970,1.10547,1808.6,1808.5,3.722]
[1745726137668,3.62857,1808.6,1808.5,3.722]
[1745726141278,3.62857,1808.6,1808.5,4.82753]
[1745726141478,3.62857,1808.6,1808.5,3.722]
[1745726141974,3.62857,1808.6,1808.5,4.82753]
[1745726142180,3.62857,1808.6,1808.5,3.722]
[1745726144091,0.09625984,1810.2,1808.9,1.10529]
[1745726144092,3.2078,1809.2,1808.9,1.10529]
[1745726144381,1.6474,1810.1,1809.8,1.10472]
[1745726144677,1.6474,1809.9,1809.8,3.2078]
[1745726145079,2.75207,1809.9,1809.8,3.2078]
[1745726145384,2.75207,1809.9,1809.8,6.9298]
[1745726146274,2.75207,1809.9,1809.8,3.2078]
[1745726147379,1.6474,1809.9,1809.8,4.31254]
[1745726148085,1.6474,1809.9,1809.8,8.03454]
[1745726148283,1.6474,1809.9,1809.8,11.73954]
[1745726148484,1.6474,1809.9,1809.8,13.32954]
[1745726148881,2.75207,1809.9,1809.8,6.9298]
[1745726149185,2.75207,1809.9,1809.8,3.2078]
[1745726149682,1.10467,1809.9,1809.8,3.2078]
[1745726150485,1.10467,1809.9,1809.8,4.31254]
[1745726152874,1.10467,1809.9,1809.8,3.2078]
[1745726153074,1.1048,1809.7,1809.6,3.704]
[1745726154187,1.1048,1809.7,1809.6,4.80886]
[1745726154391,1.1048,1809.7,1809.6,3.704]
[1745726154586,1.1048,1809.7,1809.6,4.80886]
[1745726155281,1.1048,1809.7,1809.6,3.704]
[1745726156388,1.1048,1809.7,1809.6,3.2078]
[1745726157788,1.1048,1809.7,1809.6,4.31266]
[1745726158689,2.78186,1809.8,1809.7,1.1048]
[1745726158886,1.1048,1809.7,1809.6,3.2078]
[1745726159090,14.01671804,1809.7,1808.5,4.0414]
[1745726159285,1.10547,1808.6,1808.5,4.0414]
[1745726159488,1.10547,1808.6,1808.5,3.2078]
[1745726160377,2.4391,1808.8,1808.5,3.2078]
[1745726160684,1.10544,1808.7,1808.6,1.7117]
[1745726161280,2.72954,1808.7,1808.6,2.81717]
[1745726161492,2.72954,1808.7,1808.6,1.7117]
[1745726161878,2.72954,1808.7,1808.6,2.81717]
[1745726162986,1.10525,1809.0,1808.6,10.30137]
[1745726163290,1.10525,1809.0,1808.9,3.2078]
[1745726163881,1.10529,1808.9,1808.8,3.832]
[1745726164079,2.83469,1808.9,1808.8,7.0398]
[1745726164289,2.83469,1808.9,1808.8,3.2078]
[1745726164489,1.10547,1808.6,1808.5,3.2078]
[1745726164692,1.10547,1808.6,1808.5,7.0398]
[1745726165094,1.10547,1808.6,1808.5,10.7618]
[1745726166394,1.10547,1808.6,1808.5,11.86733]
[1745726166891,1.10547,1808.6,1808.5,13.44679]
[1745726171096,1.10547,1808.6,1808.5,13.1985]
[1745726172201,1.10547,1808.6,1808.5,6.9298]
[1745726173191,1.10547,1808.6,1808.5,3.2078]
[1745726173590,1.10559,1808.4,1808.3,1.6999]
[1745726173795,1.10559,1808.4,1808.3,2.80555]
[1745726174401,1.10559,1808.4,1808.3,6.52755]
[1745726174592,2.80896,1808.5,1808.4,1.10559]
[1745726174792,2.80896,1808.5,1808.4,6.01019]
[1745726175601,2.80896,1808.5,1808.4,4.9046]
[1745726175801,2.80896,1808.5,1808.4,6.01019]
[1745726177001,1.10556,1808.5,1808.4,6.01019]
[1745726177195,2.67973,1808.6,1808.5,1.10553]
[1745726177393,2.67973,1808.6,1808.5,1.6232]
[1745726178602,2.67973,1808.6,1808.5,2.72873]
[1745726178901,1.1054,1808.8,1808.7,1.10541]
[1745726179102,5.912,1808.9,1808.5,4.38692]
[1745726179103,1.10541,1808.7,1808.6,6.68842]
[1745726179608,1.10541,1808.7,1808.6,6.68847]
[1745726179796,1.10541,1808.7,1808.6,5.583]
[1745726179992,1.10541,1808.7,1808.6,6.68847]
[1745726180700,1.10541,1808.7,1808.6,5.583]
[1745726181098,1.10547,1808.6,1808.5,4.5585]
[1745726181305,1.10547,1808.6,1808.5,3.722]
[1745726182004,2.69407,1808.6,1808.5,3.722]
[1745726182204,1.10553,1808.5,1808.4,3.2078]
[1745726182502,2.80003,1808.5,1808.4,3.2078]
[1745726183210,1.10571,1808.2,1808.1,7.0408]
[1745726183405,1.10571,1808.2,1808.1,8.14657]
[1745726183710,2.8002,1808.3,1808.2,1.10571]
[1745726184200,2.8002,1808.3,1808.2,4.82771]
[1745726184598,1.6945,1808.3,1808.2,4.82771]
[1745726184800,2.80015,1808.3,1808.2,6.43831]
[1745726185205,2.80015,1808.3,1808.2,2.71631]
[1745726186010,2.80015,1808.3,1808.1,3.2078]
[1745726186011,1.10571,1808.2,1808.1,3.2078]
[1745726186210,2.82951,1808.2,1808.1,3.2078]
[1745726186912,2.82951,1808.2,1808.1,4.31357]
[1745726187710,2.82951,1808.2,1808.1,3.2078]
[1745726187906,2.82951,1808.2,1808.1,4.31357]
[1745726188108,1.10571,1808.2,1808.1,5.90887]
[1745726191211,2.76412,1808.4,1808.2,1.10571]
[1745726191212,1.10564,1808.4,1808.2,1.10571]
[1745726191415,7.01759,1808.5,1808.4,1.10559]
[1745726191916,7.01759,1808.5,1808.4,2.78529]
[1745726192113,7.01759,1808.5,1808.4,6.50729]
[1745726192811,7.01759,1808.5,1808.4,3.722]
[1745726194310,1.10559,1808.4,1808.3,1.10561]
[1745726194616,1.10565,1808.3,1808.2,2.78536]
[1745726195116,1.10565,1808.3,1808.2,6.50736]
[1745726195716,1.10565,1808.3,1808.2,4.82766]
[1745726196409,2.69553,1808.4,1808.3,1.10565]
[1745726196609,2.69553,1808.4,1808.3,3.67685]
[1745726196904,5.912,1809.3,1808.3,15.00866192]
[1745726197109,1.6669,1809.3,1809.2,1.1051]
[1745726197415,4.31233,1810.2,1810.0,1.10461]
[1745726197617,3.2078,1810.2,1809.8,2.76185]
[1745726197817,4.31229,1810.2,1810.0,1.10456]
[1745726198504,3.2078,1810.2,1810.1,1.10455]
[1745726198712,5.912,1810.4,1810.0,3.2078]
[1745726199017,5.912,1810.4,1810.3,1.10443]
[1745726199428,1.10445,1810.3,1810.1,2.75563]
[1745726199613,1.10449,1810.2,1810.1,1.6511]
[1745726199813,5.912,1810.4,1810.1,2.75565]
[1745726199814,1.10448,1810.3,1810.1,2.75565]
[1745726200411,5.912,1810.4,1810.1,1.6511]
[1745726200606,1.10445,1810.3,1810.1,2.7556]
[1745726201318,3.2078,1810.5,1810.1,1.6511]
[1745726201519,1.10445,1810.3,1810.1,2.75562]
[1745726202019,5.912,1810.6,1810.1,1.6511]
[1745726202318,5.912,1810.6,1810.0,3.2078]
[1745726202319,1.10455,1810.1,1810.0,3.2078]
[1745726202517,1.1046,1810.1,1809.8,4.31251]
[1745726202813,1.10461,1810.1,1809.8,4.31251]
[1745726203021,6.7009,1810.3,1809.9,1.10466]